Workbook

Sheet Priser årsbasis
C3: Princip 5: Ejendom med blanding af varmenergimålere og radiatormålere, varmeenergimåler på varmtvandsbeholderens fjernvarmeside, varmtvandsmålere
C5: Regning fra varmeværk | D5: 100000 | E5: Kr. | F5: Korrektion energi | G5: ja
F6: Korrektion m2 | T6: ja | U6: ja | V6: ja
C7: Heraf faste afgifter | D7: 20000 | E7: Kr. | F7: energi + m2
C9: Totalt varmeforbrug (hovedvarmemåler) | D9: 120 | E9: MWh | F9: Kontrol 40/60
F10: =(F67+F68)/(D5-D7)*100 -> 60.75
C11: Antal lejligheder | D11: 0 | E11: stk. | F11: =SUM(F67:F68)/(D5-D7-D27*D42)*100 -> 81
D12: Uden korr. | E12: Med korr. | F12: Prisforhold
C13: Boligareal, sum m2 og m2 korrigeret | D13: 822 | E13: 822 | F13: =E54/D42*100 -> 100
C15: Værelseshaneandele (VHA) | D15: 110
C17: Antal beboere | D17: 0 | E17: stk.
C19: Cirkulationstab pr. lejlighed | D19: 0 | E19: W
C21: Sum af varmtvandsmålere m3 | D21: 270 | E21: m3
C23: Skønnet opvarmning af varmt brugsvand | D23: 35 | E23: °K
C25: % af rumvarme til varmetab og opv. af fælleslokaler | D25: 15 | E25: %
C27: Måler/skøn på varmtvandsbeholders primærside | D27: 30 | E27: MWh
D29: Uden korr. | E29: Med korr.
C30: Talte enheder MWh aflæst på energimålere (gulv eller hele lejli | D30: 42 | E30: 39
C32: Talte enheder rad. mål (dimensionsløs) sum | D32: 43000 | E32: 40000 | F32: -
C34: Gulvvarme uden målere sum m2 (gulvareal) | D34: 18 | E34: 6 | F34: -
C36: Antaget MWh pr år pr m2 gulvvarme | D36: 0.2 | E36: MWh
C38: Rumvarme efter m2 % | D38: 0
C40: Gennemsnitspris pr. MWh | D40: =D5/D9 -> 833.3333333 | E40: kr./MWh
C42: Marginalpris pr. MWh | D42: =(D5-D7)/D9 -> 666.6666667 | E42: kr./MWh
C47: Beregning af energibalance og fordelingbeløb
D49: MWh | E49: Marg.pris | F49: Kr | H49: m2 rumv | I49: =F55+F58 -> 9000 | J49: =I49/(I49+I50)*100 -> 15 | K49: =J49/100 -> 0.15
C50: Nettoforbrug Varmt vand | D50: =1.16*D23*D21/1000 -> 10.962 | E50: =D42 -> 666.6666667 | F50: =D50*E50 -> 7308 | H50: energi rumv | I50: =F54+F57+F56 -> 51000 | J50: =I50/(I49+I50)*100 -> 85
C51: Cirkulation og beholdertab | D51: =D27-D50 -> 19.038 | E51: =E50 -> 666.6666667 | F51: =D51*E51 -> 12692 | H51: m2 rumv/totrumv | I51: =I49/I50*100 -> 17.64705882
C52: Samlet bygningsvarme E1-E2 | D52: =D9-D27 -> 90
C54: Rumvarme MWh efter målere | D54: =D30 -> 42 | E54: =$D$42*(1-D38/100) -> 666.6666667 | F54: 28000
C55: Varmetab og fælleslokaler | D55: =D25/100*D52 -> 13.5 | E55: =D42 -> 666.6666667 | F55: 9000
C56: Gulvvarme uden måler | D56: =D34*D36 -> 3.6 | E56: =E54 -> 666.6666667 | F56: =D56*E56 -> 2400
C57: Rumvarme efter varmefordelingsmålere | D57: =D52-D30-D55-D56 -> 30.9 | E57: =$D$42*(1-D38/100) -> 666.6666667 | F57: 20600
C58: Rumvarme efter m2 | D58: =D38/100*(D57+D54+D56) -> 0 | E58: =D42 -> 666.6666667 | F58: 0
C59: I alt | F59: =SUM(F50:F58) -> 80000
C60: Fast afgift værk | F60: =D7 -> 20000
C61: Regning i alt | F61: =SUM(F59:F60) -> 100000
C63: Enhedspriser | D63: Enheder | E63: Kr/enhed | F63: I alt
C64: Varmtvandsmåler (m3) | D64: =D21 -> 270 | E64: =IF(D21=0,0,F50/D21) -> 27.06666667 | F64: =D64*E64 -> 7308
C65: Varmetab VVB og cirkulation (m2) | D65: =D13 -> 822 | E65: =F51/D13 -> 15.44038929 | F65: =D65*E65 -> 12692
C66: Rumvarme (m2) | D66: =E13 -> 822 | E66: =F58/D66 -> 0 | F66: =D66*E66 -> 0
C67: Rumvarme (MWh) | D67: =E30 -> 39 | E67: =F54/D67 -> 717.9487179 | F67: =D67*E67 -> 28000
C68: Rumvarme VFM | D68: =E32 -> 40000 | E68: =F57/D68 -> 0.515 | F68: =D68*E68 -> 20600
C69: Gulvarme uden måler | D69: =E34 -> 6 | E69: =IF(F56=0,0,F56/D69) -> 400 | F69: =D69*E69 -> 2400
C70: Varmetab i varmesystem og varme i fællesareal (m2) | D70: =E13 -> 822 | E70: =F55/D70 -> 10.94890511 | F70: =D70*E70 -> 9000
C71: Fast afgift værk (m2) | D71: =D13 -> 822 | E71: =F60/D13 -> 24.33090024 | F71: =D71*E71 -> 20000
C72: I alt m2 pris | E72: =E65+E66+E70+E71 -> 50.72019465 | F72: =SUM(F64:F71) -> 100000
C77: Varmeregninger
H78: Korrektion | I78: energi | J78: m2 | K78: energi + m2
C79: Lejlighed med energimåler | D79: Enheder | E79: Pris | F79: Korrektion | G79: Beløb inkl moms | H79: 20 | I79: =H79 -> 20 | J79: =(9.4*$K$49^2-13.5*$K$49+5.34)*I79 -> 70.53 | K79: =$J$50/100*I79 -> 17
C80: =C71 -> Fast afgift værk (m2) | D80: 80 | E80: =$E$71 -> 24.33090024 | G80: =D80*E80*(100-F80)/100 -> 1946.472019
C81: =C70 -> Varmetab i varmesystem og varme i fællesareal (m2) | D81: 80 | E81: =$E$70 -> 10.94890511 | F81: =(IF($G$5="ja",0)+IF($G$6="ja",J79)+IF($G$7="ja",K79)) -> 0 | G81: =D81*E81*(100-F81)/100 -> 875.9124088
C82: =C68 -> Rumvarme VFM | D82: 0 | E82: =$E$68 -> 0.515 | F82: =(IF($G$5="ja",I79)+IF($G$6="ja",0)+IF($G$7="ja",K79)) -> 20 | G82: 0
C83: =C67 -> Rumvarme (MWh) | D83: 7.2 | E83: =$E$67 -> 717.9487179 | F83: =F82 -> 20 | G83: 4135.384615
C84: =C65 -> Varmetab VVB og cirkulation (m2) | D84: 80 | E84: =$E$65 -> 15.44038929 | G84: =D84*E84*(100-F84)/100 -> 1235.231144
C85: =C66 -> Rumvarme (m2) | D85: 80 | E85: =$E$66 -> 0 | F85: =F81 -> 0 | G85: =D85*E85*(100-F85)/100 -> 0
C86: =C64 -> Varmtvandsmåler (m3) | D86: 30 | E86: =$E$64 -> 27.06666667 | G86: =D86*E86*(100-F86)/100 -> 812
C87: =C69 -> Gulvarme uden måler | D87: 0 | E87: =$E$69 -> 400 | F87: =F82 -> 20 | G87: =D87*E87*(100-F87)/100 -> 0
I89: rumvarme
F90: I alt | G90: =SUM(G80:G89) -> 9005.000187 | I90: =G82+G83+G81+G85+G87 -> 5011.297024
H92: Korrektion | I92: energi | J92: m2 | K92: energi + m2
C93: Forbruger 2 | D93: Enheder | E93: Pris | F93: Korrektion | G93: Beløb inkl moms | H93: 20 | I93: =H93 -> 20 | J93: =(9.4*$K$49^2-13.5*$K$49+5.34)*I93 -> 70.53 | K93: =$J$50/100*I93 -> 17
C94: =C80 -> Fast afgift værk (m2) | D94: 100 | E94: =$E$71 -> 24.33090024 | G94: =D94*E94*(100-F94)/100 -> 2433.090024
C95: =C81 -> Varmetab i varmesystem og varme i fællesareal (m2) | D95: 100 | E95: =$E$70 -> 10.94890511 | F95: =(IF($G$5="ja",0)+IF($G$6="ja",J93)+IF($G$7="ja",K93)) -> 0 | G95: =D95*E95*(100-F95)/100 -> 1094.890511
C96: Rumvarme VFM | D96: 7000 | E96: =$E$68 -> 0.515 | F96: =(IF($G$5="ja",I93)+IF($G$6="ja",0)+IF($G$7="ja",K93)) -> 20 | G96: 2884
C97: Rumvarme (MWh) | D97: 2 | E97: =$E$67 -> 717.9487179 | F97: =F96 -> 20 | G97: 1148.717949
C98: =C65 -> Varmetab VVB og cirkulation (m2) | D98: 80 | E98: =$E$65 -> 15.44038929 | G98: 1235.231144
C99: Rumvarme (m2) | D99: 100 | E99: =$E$66 -> 0 | F99: =F95 -> 0 | G99: =D99*E99*(100-F99)/100 -> 0
C100: Varmtvandsmåler (m3) | D100: 35 | E100: =$E$64 -> 27.06666667 | G100: =D100*E100*(100-F100)/100 -> 947.3333333
C101: =C69 -> Gulvarme uden måler | D101: 0 | E101: =$E$69 -> 400 | F101: =F96 -> 20 | G101: =D101*E101*(100-F101)/100 -> 0
I103: rumvarme
F104: I alt | G104: =SUM(G94:G103) -> 9743.262961 | I104: =G96+G97+G95+G99+G101 -> 5127.60846 | J104: =I104/I90 -> 1.023209847
H106: Korrektion | I106: energi | J106: m2 | K106: energi + m2
C107: 3 | D107: Enheder | E107: Pris | F107: Korrektion | G107: Beløb inkl moms | H107: 20 | I107: =H107 -> 20 | J107: =(9.4*$K$49^2-13.5*$K$49+5.34)*I107 -> 70.53 | K107: =$J$50/100*I107 -> 17
C108: Fast afgift værk (m2) | D108: 70 | E108: =$E$71 -> 24.33090024 | G108: =D108*E108*(100-F108)/100 -> 1703.163017
C109: Varmetab i varmesystem og varme i fællesareal (m2) | D109: 70 | E109: =$E$70 -> 10.94890511 | F109: =(IF($G$5="ja",0)+IF($G$6="ja",J107)+IF($G$7="ja",K107)) -> 0 | G109: =D109*E109*(100-F109)/100 -> 766.4233577
C110: Rumvarme VFM | D110: 2000 | E110: =$E$68 -> 0.515 | F110: =(IF($G$5="ja",I107)+IF($G$6="ja",0)+IF($G$7="ja",K107)) -> 20 | G110: 824
C111: Rumvarme (MWh) | D111: 0 | E111: =$E$67 -> 717.9487179 | F111: =F110 -> 20 | G111: 0
C112: =C65 -> Varmetab VVB og cirkulation (m2) | D112: 80 | E112: =$E$65 -> 15.44038929 | G112: 1235.231144
C113: Rumvarme (m2) | D113: 70 | E113: =$E$66 -> 0 | F113: =F109 -> 0 | G113: =D113*E113*(100-F113)/100 -> 0
C114: Varmtvandsmåler (m3) | D114: 25 | E114: =$E$64 -> 27.06666667 | G114: =D114*E114*(100-F114)/100 -> 676.6666667
C115: Gulvarme uden måler | D115: 6 | E115: =$E$69 -> 400 | F115: =F110 -> 20 | G115: =D115*E115*(100-F115)/100 -> 1920
I117: rumvarme
F118: I alt | G118: =SUM(G108:G117) -> 7125.484185 | I118: =G110+G111+G109+G113+G115 -> 3510.423358 | J118: =I118/I90 -> 0.700501954
